[Event "Titled Tuesday Blitz February 14 Early 2023"]
[White "Tymrakiewicz, Rafal"]
[Black "Tologon tegin, Semetei"]
[WhiteFideId "1108832"]
[BlackFideId "13800574"]
[WhiteElo "2144"]
[BlackElo "2372"]
[Result "0-1"]
[Round "05"]
[TimeControl "180+2"]
[Date "2023.02.15"]
[WhiteClock "0:00:01"]
[BlackClock "0:00:26"]

1. d4 {[%clk 0:03:00]}  d5 {[%clk 0:02:58]} 2. Bg5 {[%clk 0:03:00]}  c5 {[%clk 0:02:57]} 3. e3 {[%clk 0:03:00]}  Qb6 {[%clk 0:02:57]} 4. Nc3 {[%clk 0:03:00]}  e6 {[%clk 0:02:53]} 5. Rb1 {[%clk 0:02:51]}  Nc6 {[%clk 0:02:52]} 6. Nf3 {[%clk 0:02:51]}  cxd4 {[%clk 0:02:41]} 7. exd4 {[%clk 0:02:50]}  Be7 {[%clk 0:02:41]} 8. Bxe7 {[%clk 0:02:47]}  Ngxe7 {[%clk 0:02:41]} 9. Bd3 {[%clk 0:02:45]}  Bd7 {[%clk 0:02:36]} 10. Ne2 {[%clk 0:02:31]}  Nb4 {[%clk 0:02:34]} 11. c3 {[%clk 0:02:27]}  Nxd3+ {[%clk 0:02:33]} 12. Qxd3 {[%clk 0:02:27]}  Bb5 {[%clk 0:02:32]} 13. Qd2 {[%clk 0:02:25]}  Qa6 {[%clk 0:02:28]} 14. b3 {[%clk 0:02:15]}  Rc8 {[%clk 0:02:25]} 15. Rc1 {[%clk 0:02:15]}  Nf5 {[%clk 0:02:11]} 16. a4 {[%clk 0:02:14]}  Bd3 {[%clk 0:02:10]} 17. Ne5 {[%clk 0:02:02]}  Bxe2 {[%clk 0:01:58]} 18. Qxe2 {[%clk 0:02:02]}  Nxd4 {[%clk 0:01:57]} 19. Qb2 {[%clk 0:01:06]}  Nc6 {[%clk 0:01:32]} 20. Nf3 {[%clk 0:00:58]}  O-O {[%clk 0:01:31]} 21. Qe2 {[%clk 0:00:49]}  Qb6 {[%clk 0:01:27]} 22. Qb5 {[%clk 0:00:49]}  Qxb5 {[%clk 0:01:25]} 23. axb5 {[%clk 0:00:49]}  Na5 {[%clk 0:01:16]} 24. Nd2 {[%clk 0:00:45]}  Rc7 {[%clk 0:01:13]} 25. Ke2 {[%clk 0:00:44]}  Rfc8 {[%clk 0:01:12]} 26. Kd3 {[%clk 0:00:45]}  b6 {[%clk 0:01:08]} 27. Rhe1 {[%clk 0:00:37]}  Kf8 {[%clk 0:01:04]} 28. Rc2 {[%clk 0:00:33]}  Ke7 {[%clk 0:01:04]} 29. Ra1 {[%clk 0:00:33]}  Kd6 {[%clk 0:01:04]} 30. b4 {[%clk 0:00:28]}  Nc4 {[%clk 0:01:00]} 31. Nxc4+ {[%clk 0:00:28]}  dxc4+ {[%clk 0:00:59]} 32. Ke3 {[%clk 0:00:28]}  e5 {[%clk 0:00:58]} 33. Rd2+ {[%clk 0:00:28]}  Ke6 {[%clk 0:00:58]} 34. Rad1 {[%clk 0:00:28]}  f6 {[%clk 0:00:53]} 35. g4 {[%clk 0:00:28]}  Ke7 {[%clk 0:00:48]} 36. Ke4 {[%clk 0:00:24]}  Ra8 {[%clk 0:00:45]} 37. Rd6 {[%clk 0:00:23]}  Rb8 {[%clk 0:00:43]} 38. h4 {[%clk 0:00:21]}  Rbb7 {[%clk 0:00:42]} 39. h5 {[%clk 0:00:14]}  Rd7 {[%clk 0:00:42]} 40. R6d5 {[%clk 0:00:13]}  Rxd5 {[%clk 0:00:40]} 41. Rxd5 {[%clk 0:00:13]}  g6 {[%clk 0:00:35]} 42. h6 {[%clk 0:00:12]}  Ke6 {[%clk 0:00:33]} 43. Rd8 {[%clk 0:00:11]}  f5+ {[%clk 0:00:34]} 44. gxf5+ {[%clk 0:00:11]}  gxf5+ {[%clk 0:00:34]} 45. Ke3 {[%clk 0:00:11]}  Rc7 {[%clk 0:00:29]} 46. Rg8 {[%clk 0:00:11]}  Kf6 {[%clk 0:00:30]} 47. Re8 {[%clk 0:00:08]}  Rd7 {[%clk 0:00:29]} 48. Ke2 {[%clk 0:00:08]}  e4 {[%clk 0:00:26]} 49. Ra8 {[%clk 0:00:07]}  Kg5 {[%clk 0:00:26]} 50. Rg8+ {[%clk 0:00:05]}  Kxh6 {[%clk 0:00:26]} 51. Ke3 {[%clk 0:00:05]}  Rd3+ {[%clk 0:00:25]} 52. Kf4 {[%clk 0:00:06]}  Rf3+ {[%clk 0:00:25]} 53. Ke5 {[%clk 0:00:05]}  Rxf2 {[%clk 0:00:25]} 54. Ra8 {[%clk 0:00:04]}  e3 {[%clk 0:00:25]} 55. Rxa7 {[%clk 0:00:04]}  e2 {[%clk 0:00:26]} 56. Ra1 {[%clk 0:00:04]}  Rf1 {[%clk 0:00:26]} 57. Re1 {[%clk 0:00:01]}  Rxe1 {[%clk 0:00:26]} 0-1


[Site "https://www.chess.com"]

[Event "Titled Tuesday Blitz February 14 Early 2023"]
[White "Manelyuk, Daniil"]
[Black "Fernandez Garcia, Gumersindo"]
[WhiteFideId "44173920"]
[BlackFideId "24516740"]
[WhiteElo "2302"]
[BlackElo "2160"]
[Result "1-0"]
[Round "05"]
[TimeControl "180+2"]
[Date "2023.02.15"]
[WhiteClock "0:00:06"]
[BlackClock "0:00:02"]

1. e4 {[%clk 0:03:00]}  d6 {[%clk 0:02:55]} 2. d4 {[%clk 0:02:59]}  Nf6 {[%clk 0:02:54]} 3. Nc3 {[%clk 0:02:59]}  e5 {[%clk 0:02:55]} 4. Nf3 {[%clk 0:02:58]}  Nbd7 {[%clk 0:02:54]} 5. Bc4 {[%clk 0:02:58]}  Be7 {[%clk 0:02:53]} 6. O-O {[%clk 0:02:58]}  O-O {[%clk 0:02:52]} 7. Re1 {[%clk 0:02:57]}  c6 {[%clk 0:02:52]} 8. a4 {[%clk 0:02:57]}  a5 {[%clk 0:02:51]} 9. Be3 {[%clk 0:02:45]}  Qc7 {[%clk 0:02:50]} 10. d5 {[%clk 0:02:40]}  h6 {[%clk 0:02:44]} 11. b3 {[%clk 0:02:38]}  Rd8 {[%clk 0:02:39]} 12. Nh4 {[%clk 0:02:17]}  Nc5 {[%clk 0:02:35]} 13. Nf5 {[%clk 0:02:14]}  Bxf5 {[%clk 0:02:35]} 14. exf5 {[%clk 0:02:15]}  cxd5 {[%clk 0:02:29]} 15. Nxd5 {[%clk 0:02:16]}  Nxd5 {[%clk 0:02:29]} 16. Bxd5 {[%clk 0:02:14]}  Rac8 {[%clk 0:02:29]} 17. Qg4 {[%clk 0:02:08]}  Kf8 {[%clk 0:02:21]} 18. Rad1 {[%clk 0:01:52]}  b6 {[%clk 0:02:09]} 19. Rd2 {[%clk 0:01:51]}  Bf6 {[%clk 0:01:54]} 20. Red1 {[%clk 0:01:49]}  Na6 {[%clk 0:01:52]} 21. Bc4 {[%clk 0:01:43]}  Nb4 {[%clk 0:01:48]} 22. c3 {[%clk 0:01:43]}  Nc6 {[%clk 0:01:47]} 23. Qh5 {[%clk 0:01:38]}  e4 {[%clk 0:01:31]} 24. Bxb6 {[%clk 0:01:36]}  Qe7 {[%clk 0:01:22]} 25. Bxd8 {[%clk 0:01:34]}  Rxd8 {[%clk 0:01:23]} 26. Rxd6 {[%clk 0:01:09]}  Rxd6 {[%clk 0:01:15]} 27. Rxd6 {[%clk 0:01:10]}  Ne5 {[%clk 0:01:14]} 28. Ra6 {[%clk 0:00:53]}  Kg8 {[%clk 0:00:58]} 29. h4 {[%clk 0:00:39]}  Kh7 {[%clk 0:00:55]} 30. Ra8 {[%clk 0:00:37]}  Qd7 {[%clk 0:00:36]} 31. Rxa5 {[%clk 0:00:19]}  Nxc4 {[%clk 0:00:31]} 32. bxc4 {[%clk 0:00:17]}  Bxc3 {[%clk 0:00:32]} 33. Rd5 {[%clk 0:00:17]}  Qb7 {[%clk 0:00:31]} 34. Qg4 {[%clk 0:00:17]}  Qb1+ {[%clk 0:00:28]} 35. Kh2 {[%clk 0:00:17]}  Bf6 {[%clk 0:00:28]} 36. c5 {[%clk 0:00:15]}  Qe1 {[%clk 0:00:15]} 37. Qf4 {[%clk 0:00:11]}  Qb4 {[%clk 0:00:08]} 38. c6 {[%clk 0:00:09]}  Qxa4 {[%clk 0:00:08]} 39. Rc5 {[%clk 0:00:08]}  Qa8 {[%clk 0:00:07]} 40. c7 {[%clk 0:00:07]}  Qc8 {[%clk 0:00:07]} 41. Qd6 {[%clk 0:00:07]}  e3 {[%clk 0:00:02]} 42. fxe3 {[%clk 0:00:07]}  Bxh4 {[%clk 0:00:01]} 43. g3 {[%clk 0:00:07]}  Bf6 {[%clk 0:00:02]} 44. Qc6 {[%clk 0:00:06]} 1-0


[Site "https://www.chess.com"]

[Event "Titled Tuesday Blitz February 14 Early 2023"]
[White "Maksimenko, Viktor"]
[Black "Chernov, Mikhail"]
[WhiteFideId "13710478"]
[BlackFideId "24143170"]
[WhiteElo "2196"]
[BlackElo "2205"]
[Result "1-0"]
[Round "05"]
[TimeControl "180+2"]
[Date "2023.02.15"]
[WhiteClock "0:01:48"]
[BlackClock "0:00:17"]

1. d4 {[%clk 0:02:56]}  d5 {[%clk 0:02:58]} 2. c4 {[%clk 0:02:56]}  c6 {[%clk 0:02:57]} 3. Nf3 {[%clk 0:02:56]}  Nf6 {[%clk 0:02:58]} 4. e3 {[%clk 0:02:56]}  Bf5 {[%clk 0:02:57]} 5. Nh4 {[%clk 0:02:57]}  Bd7 {[%clk 0:02:45]} 6. Nc3 {[%clk 0:02:56]}  e6 {[%clk 0:02:43]} 7. cxd5 {[%clk 0:02:55]}  exd5 {[%clk 0:02:39]} 8. Qc2 {[%clk 0:02:54]}  Bd6 {[%clk 0:02:37]} 9. Nf5 {[%clk 0:02:54]}  Bxf5 {[%clk 0:02:36]} 10. Qxf5 {[%clk 0:02:55]}  Qd7 {[%clk 0:02:34]} 11. Qf3 {[%clk 0:02:54]}  O-O {[%clk 0:02:34]} 12. Bd3 {[%clk 0:02:53]}  Qg4 {[%clk 0:02:29]} 13. Bd2 {[%clk 0:02:51]}  Qxf3 {[%clk 0:02:29]} 14. gxf3 {[%clk 0:02:52]}  Re8 {[%clk 0:02:28]} 15. O-O-O {[%clk 0:02:51]}  Nbd7 {[%clk 0:02:29]} 16. Kb1 {[%clk 0:02:50]}  a5 {[%clk 0:02:19]} 17. Bc1 {[%clk 0:02:41]}  a4 {[%clk 0:02:17]} 18. a3 {[%clk 0:02:40]}  b5 {[%clk 0:02:14]} 19. Na2 {[%clk 0:02:34]}  Nb6 {[%clk 0:02:13]} 20. Bd2 {[%clk 0:02:20]}  Nc4 {[%clk 0:02:10]} 21. Bc3 {[%clk 0:02:21]}  g6 {[%clk 0:01:38]} 22. Bc2 {[%clk 0:02:18]}  Nd7 {[%clk 0:01:35]} 23. Nc1 {[%clk 0:02:14]}  f5 {[%clk 0:01:33]} 24. Nd3 {[%clk 0:02:11]}  Kg7 {[%clk 0:01:20]} 25. Rdg1 {[%clk 0:02:03]}  Kf6 {[%clk 0:01:16]} 26. f4 {[%clk 0:01:55]}  Kf7 {[%clk 0:01:06]} 27. h4 {[%clk 0:01:54]}  Nf6 {[%clk 0:01:05]} 28. Ne5+ {[%clk 0:01:50]}  Bxe5 {[%clk 0:01:02]} 29. dxe5 {[%clk 0:01:50]}  Ne4 {[%clk 0:01:00]} 30. Bxe4 {[%clk 0:01:51]}  dxe4 {[%clk 0:00:49]} 31. h5 {[%clk 0:01:49]}  Re6 {[%clk 0:00:16]} 32. hxg6+ {[%clk 0:01:48]}  hxg6 {[%clk 0:00:17]} 33. Rh7+ {[%clk 0:01:48]}  Kg8 {[%clk 0:00:17]} 34. Rgh1 {[%clk 0:01:48]} 1-0


[Site "https://www.chess.com"]

[Event "Titled Tuesday Blitz February 14 Early 2023"]
[White "Fernandez, Michael"]
[Black "Kopczynski, Michal"]
[WhiteFideId "5803560"]
[BlackFideId "1124200"]
[WhiteElo "2181"]
[BlackElo "2225"]
[Result "1-0"]
[Round "05"]
[TimeControl "180+2"]
[Date "2023.02.15"]
[WhiteClock "0:00:11"]
[BlackClock "0:00:04"]

1. d4 {[%clk 0:02:58]}  Nf6 {[%clk 0:02:59]} 2. c4 {[%clk 0:02:57]}  g6 {[%clk 0:03:00]} 3. f3 {[%clk 0:02:56]}  Bg7 {[%clk 0:03:00]} 4. e4 {[%clk 0:02:56]}  d6 {[%clk 0:03:01]} 5. Nc3 {[%clk 0:02:56]}  O-O {[%clk 0:03:02]} 6. Be3 {[%clk 0:02:50]}  e5 {[%clk 0:03:02]} 7. Nge2 {[%clk 0:02:49]}  Nc6 {[%clk 0:03:02]} 8. d5 {[%clk 0:02:47]}  Ne7 {[%clk 0:03:01]} 9. Qd2 {[%clk 0:02:47]}  Ne8 {[%clk 0:03:01]} 10. h4 {[%clk 0:02:29]}  f5 {[%clk 0:03:01]} 11. h5 {[%clk 0:02:28]}  f4 {[%clk 0:03:01]} 12. Bf2 {[%clk 0:02:28]}  g5 {[%clk 0:02:59]} 13. g4 {[%clk 0:02:15]}  fxg3 {[%clk 0:02:49]} 14. Nxg3 {[%clk 0:02:14]}  h6 {[%clk 0:02:46]} 15. Qd3 {[%clk 0:02:01]}  c5 {[%clk 0:02:36]} 16. Bh3 {[%clk 0:01:47]}  Bxh3 {[%clk 0:02:31]} 17. Rxh3 {[%clk 0:01:48]}  Qd7 {[%clk 0:02:28]} 18. Rh1 {[%clk 0:01:44]}  a6 {[%clk 0:02:08]} 19. O-O-O {[%clk 0:01:37]}  b5 {[%clk 0:02:04]} 20. Kb1 {[%clk 0:01:37]}  bxc4 {[%clk 0:02:03]} 21. Qxc4 {[%clk 0:01:36]}  Rxf3 {[%clk 0:01:59]} 22. Rdf1 {[%clk 0:01:33]}  Rb8 {[%clk 0:01:56]} 23. Be1 {[%clk 0:01:21]}  Rxf1 {[%clk 0:01:39]} 24. Rxf1 {[%clk 0:01:22]}  Nf6 {[%clk 0:01:39]} 25. Qxa6 {[%clk 0:01:16]}  Nxh5 {[%clk 0:01:37]} 26. Nxh5 {[%clk 0:01:11]}  Qh3 {[%clk 0:01:11]} 27. Ng3 {[%clk 0:01:11]}  Rd8 {[%clk 0:00:54]} 28. Nce2 {[%clk 0:00:58]}  Ng6 {[%clk 0:00:41]} 29. Ba5 {[%clk 0:00:54]}  Rd7 {[%clk 0:00:37]} 30. Qc8+ {[%clk 0:00:52]}  Kh7 {[%clk 0:00:35]} 31. Rf5 {[%clk 0:00:49]}  Ra7 {[%clk 0:00:24]} 32. Bb6 {[%clk 0:00:43]}  Rf7 {[%clk 0:00:23]} 33. Qe6 {[%clk 0:00:36]}  Rxf5 {[%clk 0:00:22]} 34. Qxf5 {[%clk 0:00:24]}  Qg2 {[%clk 0:00:20]} 35. a4 {[%clk 0:00:20]}  h5 {[%clk 0:00:20]} 36. Qxg5 {[%clk 0:00:12]}  h4 {[%clk 0:00:18]} 37. Qh5+ {[%clk 0:00:12]}  Bh6 {[%clk 0:00:18]} 38. Nf5 {[%clk 0:00:12]}  Qg5 {[%clk 0:00:11]} 39. Qxh6+ {[%clk 0:00:09]}  Qxh6 {[%clk 0:00:10]} 40. Nxh6 {[%clk 0:00:10]}  Kxh6 {[%clk 0:00:10]} 41. Ng1 {[%clk 0:00:10]}  Ne7 {[%clk 0:00:07]} 42. a5 {[%clk 0:00:11]}  Nc8 {[%clk 0:00:08]} 43. Bd8 {[%clk 0:00:10]}  Kh5 {[%clk 0:00:08]} 44. a6 {[%clk 0:00:11]}  Kg4 {[%clk 0:00:09]} 45. Bc7 {[%clk 0:00:11]}  Kg3 {[%clk 0:00:07]} 46. Bd8 {[%clk 0:00:09]}  h3 {[%clk 0:00:03]} 47. Nxh3 {[%clk 0:00:09]}  Kxh3 {[%clk 0:00:04]} 48. Bc7 {[%clk 0:00:09]}  Kg4 {[%clk 0:00:04]} 49. Bxd6 {[%clk 0:00:09]}  Kf3 {[%clk 0:00:04]} 50. Bxc5 {[%clk 0:00:09]}  Kxe4 {[%clk 0:00:05]} 51. d6 {[%clk 0:00:09]}  Nxd6 {[%clk 0:00:02]} 52. Bxd6 {[%clk 0:00:10]}  Kd5 {[%clk 0:00:03]} 53. a7 {[%clk 0:00:10]}  Kc6 {[%clk 0:00:03]} 54. a8=Q+ {[%clk 0:00:10]}  Kxd6 {[%clk 0:00:04]} 55. Qe4 {[%clk 0:00:11]} 1-0


[Site "https://www.chess.com"]

[Event "Titled Tuesday Blitz February 14 Early 2023"]
[White "Berezin, Viktor"]
[Black "Iljin, Timofey"]
[WhiteFideId "14107872"]
[BlackFideId "14110180"]
[WhiteElo "2307"]
[BlackElo "2329"]
[Result "0-1"]
[Round "05"]
[TimeControl "180+2"]
[Date "2023.02.15"]
[WhiteClock "0:00:11"]
[BlackClock "0:00:07"]

1. d4 {[%clk 0:03:00]}  d5 {[%clk 0:01:37]} 2. c4 {[%clk 0:02:59]}  e6 {[%clk 0:01:37]} 3. Nf3 {[%clk 0:02:59]}  Nf6 {[%clk 0:01:37]} 4. g3 {[%clk 0:02:59]}  Bb4+ {[%clk 0:01:36]} 5. Nbd2 {[%clk 0:02:59]}  dxc4 {[%clk 0:01:35]} 6. Bg2 {[%clk 0:02:59]}  O-O {[%clk 0:01:35]} 7. O-O {[%clk 0:02:58]}  Bd7 {[%clk 0:01:35]} 8. Nxc4 {[%clk 0:02:57]}  Bc6 {[%clk 0:01:35]} 9. Nce5 {[%clk 0:02:57]}  Bd5 {[%clk 0:01:25]} 10. a3 {[%clk 0:02:53]}  Be7 {[%clk 0:01:20]} 11. b4 {[%clk 0:02:42]}  Nc6 {[%clk 0:01:10]} 12. Bb2 {[%clk 0:02:39]}  Nxe5 {[%clk 0:01:09]} 13. dxe5 {[%clk 0:02:39]}  Ne4 {[%clk 0:00:41]} 14. Rc1 {[%clk 0:02:26]}  Bc6 {[%clk 0:00:37]} 15. Qxd8 {[%clk 0:02:17]}  Rfxd8 {[%clk 0:00:36]} 16. Nd4 {[%clk 0:02:18]}  Bd5 {[%clk 0:00:21]} 17. Rxc7 {[%clk 0:02:15]}  Bg5 {[%clk 0:00:18]} 18. f4 {[%clk 0:02:10]}  Bh6 {[%clk 0:00:17]} 19. Rfc1 {[%clk 0:02:08]}  g5 {[%clk 0:00:16]} 20. e3 {[%clk 0:02:02]}  gxf4 {[%clk 0:00:16]} 21. exf4 {[%clk 0:02:00]}  Nd2 {[%clk 0:00:14]} 22. Bxd5 {[%clk 0:01:29]}  Rxd5 {[%clk 0:00:14]} 23. Rc8+ {[%clk 0:01:29]}  Rxc8 {[%clk 0:00:14]} 24. Rxc8+ {[%clk 0:01:30]}  Kg7 {[%clk 0:00:15]} 25. Kf2 {[%clk 0:01:30]}  b5 {[%clk 0:00:08]} 26. f5 {[%clk 0:01:21]}  Nc4 {[%clk 0:00:05]} 27. Bc3 {[%clk 0:00:58]}  Be3+ {[%clk 0:00:04]} 28. Kf3 {[%clk 0:00:57]}  Bxd4 {[%clk 0:00:05]} 29. f6+ {[%clk 0:00:55]}  Kh6 {[%clk 0:00:04]} 30. Be1 {[%clk 0:00:49]}  Nxe5+ {[%clk 0:00:03]} 31. Kg2 {[%clk 0:00:48]}  Nd3 {[%clk 0:00:04]} 32. Bd2+ {[%clk 0:00:42]}  Kg6 {[%clk 0:00:04]} 33. Rg8+ {[%clk 0:00:40]}  Kxf6 {[%clk 0:00:05]} 34. Bh6 {[%clk 0:00:41]}  Ne5 {[%clk 0:00:02]} 35. Bg7+ {[%clk 0:00:41]}  Kf5 {[%clk 0:00:02]} 36. h3 {[%clk 0:00:42]}  Ng6 {[%clk 0:00:02]} 37. g4+ {[%clk 0:00:42]}  Ke4 {[%clk 0:00:02]} 38. Bh6 {[%clk 0:00:42]}  Nf4+ {[%clk 0:00:02]} 39. Kg3 {[%clk 0:00:42]}  Ne2+ {[%clk 0:00:02]} 40. Kg2 {[%clk 0:00:42]}  Nf4+ {[%clk 0:00:02]} 41. Kg3 {[%clk 0:00:42]}  Ng6 {[%clk 0:00:02]} 42. Bg5 {[%clk 0:00:42]}  Be5+ {[%clk 0:00:03]} 43. Kg2 {[%clk 0:00:42]}  Rd3 {[%clk 0:00:03]} 44. h4 {[%clk 0:00:42]}  Rxa3 {[%clk 0:00:02]} 45. h5 {[%clk 0:00:42]}  Ra2+ {[%clk 0:00:03]} 46. Kf1 {[%clk 0:00:42]}  Nf4 {[%clk 0:00:04]} 47. Rf8 {[%clk 0:00:41]}  Ra1+ {[%clk 0:00:03]} 48. Kf2 {[%clk 0:00:41]}  Bd4+ {[%clk 0:00:04]} 49. Kg3 {[%clk 0:00:41]}  Rg1+ {[%clk 0:00:04]} 50. Kh2 {[%clk 0:00:40]}  Rg2+ {[%clk 0:00:04]} 51. Kh1 {[%clk 0:00:40]}  Rxg4 {[%clk 0:00:05]} 52. Be7 {[%clk 0:00:39]}  Nxh5 {[%clk 0:00:02]} 53. Rxf7 {[%clk 0:00:39]}  Ng3+ {[%clk 0:00:03]} 54. Kh2 {[%clk 0:00:40]}  Nf1+ {[%clk 0:00:04]} 55. Rxf1 {[%clk 0:00:39]}  Rg6 {[%clk 0:00:02]} 56. Kh3 {[%clk 0:00:37]}  Kd5 {[%clk 0:00:02]} 57. Kh4 {[%clk 0:00:35]}  e5 {[%clk 0:00:03]} 58. Kh5 {[%clk 0:00:35]}  e4 {[%clk 0:00:03]} 59. Bg5 {[%clk 0:00:35]}  e3 {[%clk 0:00:03]} 60. Re1 {[%clk 0:00:36]}  Ke4 {[%clk 0:00:03]} 61. Rc1 {[%clk 0:00:28]}  Rxg5+ {[%clk 0:00:03]} 62. Kxg5 {[%clk 0:00:28]}  e2 {[%clk 0:00:04]} 63. Kg4 {[%clk 0:00:25]}  Be3 {[%clk 0:00:02]} 64. Re1 {[%clk 0:00:25]}  Kd3 {[%clk 0:00:02]} 65. Kf3 {[%clk 0:00:25]}  Bd2 {[%clk 0:00:02]} 66. Rxe2 {[%clk 0:00:26]}  Bxb4 {[%clk 0:00:03]} 67. Rh2 {[%clk 0:00:20]}  a5 {[%clk 0:00:03]} 68. Rxh7 {[%clk 0:00:20]}  a4 {[%clk 0:00:04]} 69. Rb7 {[%clk 0:00:20]}  Kc4 {[%clk 0:00:04]} 70. Ke4 {[%clk 0:00:19]}  Bc5 {[%clk 0:00:04]} 71. Rb8 {[%clk 0:00:14]}  a3 {[%clk 0:00:05]} 72. Ra8 {[%clk 0:00:14]}  b4 {[%clk 0:00:05]} 73. Ke5 {[%clk 0:00:14]}  Kb3 {[%clk 0:00:05]} 74. Kd5 {[%clk 0:00:13]}  Be3 {[%clk 0:00:05]} 75. Ke4 {[%clk 0:00:14]}  Bd2 {[%clk 0:00:05]} 76. Kd3 {[%clk 0:00:14]}  Bc3 {[%clk 0:00:05]} 77. Ra7 {[%clk 0:00:13]}  a2 {[%clk 0:00:06]} 78. Ra6 {[%clk 0:00:10]}  a1=Q {[%clk 0:00:06]} 79. Rxa1 {[%clk 0:00:11]}  Bxa1 {[%clk 0:00:07]} 0-1


[Site "https://www.chess.com"]

[Event "Titled Tuesday Blitz February 14 Early 2023"]
[White "Mouhamad, Joachim"]
[Black "Golubev, Mikhail"]
[WhiteFideId "656410"]
[BlackFideId "14100983"]
[WhiteElo "2238"]
[BlackElo "2461"]
[Result "1-0"]
[Round "05"]
[TimeControl "180+2"]
[Date "2023.02.15"]
[WhiteClock "0:00:14"]
[BlackClock "0:00:03"]

1. e4 {[%clk 0:02:53]}  c5 {[%clk 0:02:48]} 2. Nf3 {[%clk 0:02:53]}  d6 {[%clk 0:02:43]} 3. d4 {[%clk 0:02:54]}  Nf6 {[%clk 0:02:44]} 4. Nc3 {[%clk 0:02:53]}  cxd4 {[%clk 0:02:44]} 5. Nxd4 {[%clk 0:02:54]}  g6 {[%clk 0:02:44]} 6. Be3 {[%clk 0:02:53]}  Bg7 {[%clk 0:02:44]} 7. f3 {[%clk 0:02:53]}  O-O {[%clk 0:02:44]} 8. Qd2 {[%clk 0:02:53]}  Nc6 {[%clk 0:02:45]} 9. O-O-O {[%clk 0:02:54]}  d5 {[%clk 0:02:44]} 10. exd5 {[%clk 0:02:53]}  Nxd5 {[%clk 0:02:44]} 11. Nxc6 {[%clk 0:02:54]}  bxc6 {[%clk 0:02:44]} 12. Bd4 {[%clk 0:02:55]}  Bxd4 {[%clk 0:02:40]} 13. Qxd4 {[%clk 0:02:54]}  Qb6 {[%clk 0:02:39]} 14. Na4 {[%clk 0:02:53]}  Qa5 {[%clk 0:02:38]} 15. b3 {[%clk 0:02:51]}  Qc7 {[%clk 0:02:37]} 16. Bc4 {[%clk 0:02:42]}  Rd8 {[%clk 0:02:26]} 17. Rhe1 {[%clk 0:02:34]}  Be6 {[%clk 0:02:10]} 18. Qe5 {[%clk 0:02:32]}  Qxe5 {[%clk 0:01:25]} 19. Rxe5 {[%clk 0:02:32]}  Nf4 {[%clk 0:01:21]} 20. Rxd8+ {[%clk 0:02:13]}  Rxd8 {[%clk 0:01:22]} 21. Bxe6 {[%clk 0:02:12]}  Nxe6 {[%clk 0:01:20]} 22. Ra5 {[%clk 0:02:07]}  Rd7 {[%clk 0:01:15]} 23. Nc5 {[%clk 0:02:06]}  Nxc5 {[%clk 0:01:01]} 24. Rxc5 {[%clk 0:02:07]}  Rd6 {[%clk 0:00:58]} 25. Ra5 {[%clk 0:02:02]}  Rd7 {[%clk 0:00:57]} 26. Ra6 {[%clk 0:02:01]}  Rc7 {[%clk 0:00:57]} 27. Kd2 {[%clk 0:02:00]}  f5 {[%clk 0:00:49]} 28. Kd3 {[%clk 0:02:00]}  Kf7 {[%clk 0:00:49]} 29. Kd4 {[%clk 0:02:00]}  Ke6 {[%clk 0:00:49]} 30. Kc5 {[%clk 0:01:59]}  Kd7 {[%clk 0:00:49]} 31. f4 {[%clk 0:01:56]}  h6 {[%clk 0:00:34]} 32. h4 {[%clk 0:01:52]}  e5 {[%clk 0:00:34]} 33. fxe5 {[%clk 0:01:48]}  Ke6 {[%clk 0:00:33]} 34. Rxc6+ {[%clk 0:00:44]}  Rxc6+ {[%clk 0:00:32]} 35. Kxc6 {[%clk 0:00:45]}  g5 {[%clk 0:00:31]} 36. Kb7 {[%clk 0:00:17]}  f4 {[%clk 0:00:25]} 37. c4 {[%clk 0:00:17]}  g4 {[%clk 0:00:20]} 38. c5 {[%clk 0:00:18]}  f3 {[%clk 0:00:21]} 39. gxf3 {[%clk 0:00:18]}  gxf3 {[%clk 0:00:15]} 40. c6 {[%clk 0:00:18]}  f2 {[%clk 0:00:15]} 41. c7 {[%clk 0:00:19]}  f1=Q {[%clk 0:00:15]} 42. c8=Q+ {[%clk 0:00:20]}  Kxe5 {[%clk 0:00:13]} 43. Qc5+ {[%clk 0:00:16]}  Ke4 {[%clk 0:00:07]} 44. Qc4+ {[%clk 0:00:10]}  Qxc4 {[%clk 0:00:07]} 45. bxc4 {[%clk 0:00:11]}  Kd4 {[%clk 0:00:07]} 46. Kxa7 {[%clk 0:00:11]}  Kxc4 {[%clk 0:00:06]} 47. Kb6 {[%clk 0:00:12]}  Kb4 {[%clk 0:00:03]} 48. Kc6 {[%clk 0:00:12]}  Ka3 {[%clk 0:00:03]} 49. Kd6 {[%clk 0:00:12]}  Kxa2 {[%clk 0:00:03]} 50. Ke6 {[%clk 0:00:13]}  Kb3 {[%clk 0:00:04]} 51. Kf6 {[%clk 0:00:14]}  Kc4 {[%clk 0:00:03]} 52. Kg6 {[%clk 0:00:14]} 1-0


[Site "https://www.chess.com"]

[Event "Titled Tuesday Blitz February 14 Early 2023"]
[White "Principe, Gerson"]
[Black "Wu, Sibo"]
[WhiteFideId "3804550"]
[BlackFideId "8606048"]
[WhiteElo "2226"]
[BlackElo "2082"]
[Result "1-0"]
[Round "05"]
[TimeControl "180+2"]
[Date "2023.02.15"]
[WhiteClock "0:00:05"]
[BlackClock "0:00:03"]

1. d4 {[%clk 0:03:00]}  d5 {[%clk 0:02:59]} 2. Nf3 {[%clk 0:03:00]}  Nf6 {[%clk 0:02:58]} 3. c4 {[%clk 0:02:58]}  c6 {[%clk 0:02:58]} 4. e3 {[%clk 0:02:57]}  a6 {[%clk 0:02:52]} 5. Bd3 {[%clk 0:02:50]}  b5 {[%clk 0:02:43]} 6. b3 {[%clk 0:02:49]}  Bg4 {[%clk 0:02:41]} 7. O-O {[%clk 0:02:49]}  Nbd7 {[%clk 0:02:39]} 8. Nc3 {[%clk 0:02:45]}  e5 {[%clk 0:02:29]} 9. Be2 {[%clk 0:02:10]}  Bxf3 {[%clk 0:02:00]} 10. Bxf3 {[%clk 0:02:07]}  e4 {[%clk 0:02:00]} 11. Be2 {[%clk 0:02:06]}  Bd6 {[%clk 0:01:58]} 12. f3 {[%clk 0:01:54]}  Qc7 {[%clk 0:01:48]} 13. f4 {[%clk 0:01:47]}  h5 {[%clk 0:01:41]} 14. Bd2 {[%clk 0:01:46]}  g5 {[%clk 0:01:28]} 15. c5 {[%clk 0:01:15]}  Be7 {[%clk 0:01:27]} 16. fxg5 {[%clk 0:01:05]}  Ng4 {[%clk 0:01:07]} 17. Bxg4 {[%clk 0:01:03]}  hxg4 {[%clk 0:01:07]} 18. g3 {[%clk 0:01:04]}  Bxg5 {[%clk 0:01:06]} 19. Qxg4 {[%clk 0:01:01]}  Rg8 {[%clk 0:01:05]} 20. Qe2 {[%clk 0:00:52]}  Rg7 {[%clk 0:00:50]} 21. b4 {[%clk 0:00:33]}  Ke7 {[%clk 0:00:49]} 22. a4 {[%clk 0:00:33]}  Rh8 {[%clk 0:00:47]} 23. Rf5 {[%clk 0:00:24]}  Bh4 {[%clk 0:00:38]} 24. Be1 {[%clk 0:00:19]}  Nf6 {[%clk 0:00:26]} 25. Re5+ {[%clk 0:00:15]}  Kd7 {[%clk 0:00:25]} 26. axb5 {[%clk 0:00:15]}  axb5 {[%clk 0:00:20]} 27. Nxb5 {[%clk 0:00:15]}  Qb8 {[%clk 0:00:13]} 28. Ra7+ {[%clk 0:00:08]}  Kd8 {[%clk 0:00:13]} 29. Ra5 {[%clk 0:00:03]}  cxb5 {[%clk 0:00:11]} 30. Rxb5 {[%clk 0:00:04]}  Qc7 {[%clk 0:00:10]} 31. Ra5 {[%clk 0:00:04]}  Kd7 {[%clk 0:00:06]} 32. Qb5+ {[%clk 0:00:03]}  Kd8 {[%clk 0:00:02]} 33. Ra8+ {[%clk 0:00:04]}  Qc8 {[%clk 0:00:02]} 34. Rxc8+ {[%clk 0:00:04]}  Kxc8 {[%clk 0:00:03]} 35. Qc6+ {[%clk 0:00:05]} 1-0


[Site "https://www.chess.com"]